Cogmind - Beta 14 @@@ ROGUE MODE // 2024.08.09 @ 22:34:24 Player: JF Result: Core destroyed Performance ------------- Evolutions (1) 500 Regions Visited (3) 600 Robots Destroyed (63) 315 Value Destroyed (1912) 1912 Prototype IDs (7) 140 Alien Tech Used (0) 0 Bonus (63) 63 TOTAL SCORE: 3530 Bonus ------- High Alert Combat Kills 63 Cogmind --------- Core Integrity 0/400 Matter 287/300 Energy 278/340 System Corruption 1% Temperature Critical (612) Movement Walking (330) Ox3 Location -9/Storage Parts ------- > --- POWER (2) -------- Heavy Ion Engine Light Nuclear Core > --- PROPULSION (2) --- Aluminum Leg Aluminum Leg > --- UTILITY (3) ------ High-capacity Storage Unit Signal Interpreter Light Armor Plating > --- WEAPON (2) ------- Improved EM Shotgun Advanced Beam Cannon > --- INVENTORY (20) --- Aluminum Leg Improved Flight Unit Improved Flight Unit Improved Flight Unit Heat Sink Improved Medium Laser Advanced Beam Cannon Peak State ------------ > --- POWER ------------ Heavy Ion Engine Heavy Ion Engine > --- PROPULSION ------- Improved Flight Unit Improved Flight Unit > --- UTILITY ---------- Heat Sink Small Storage Unit Signal Interpreter > --- WEAPON ----------- Improved Medium Laser Advanced Beam Cannon > --- INVENTORY -------- Aluminum Leg Aluminum Leg Aluminum Leg Aluminum Leg Aluminum Leg Improved Medium Laser Particle Cannon Improved Light Cannon [Rating: 22] Favorites ----------- Power Heavy Ion Engine Engine Heavy Ion Engine Power Core Light Nuclear Core Propulsion Aluminum Leg Leg Aluminum Leg Hover Unit Improved Hover Unit Flight Unit Improved Flight Unit Utility Small Storage Unit Device Cooling System Storage Small Storage Unit Processor Signal Interpreter Protection Core Shielding Weapon Heavy EM Pulse Gun Energy Gun Heavy EM Pulse Gun Energy Cannon Particle Cannon Ballistic Gun Assault Rifle Ballistic Cannon Improved Light Cannon Build | -11 -10 -9 -9 ------- Run | Yrd Mat Mat Sto Slots Evolved 2 | . . 2 . Power 1 | . . 1 . Propulsion . | . . . . Utility 1 | . . 1 . Weapon . | . . . . Parts Attached 46 | 6 7 5 28 Power 7 | 1 1 1 4 Engine 6 | 1 1 1 3 Core 1 | . . . 1 Reactor . | . . . . Propulsion 16 | 2 . 2 12 Treads . | . . . . Leg 11 | 2 . 2 7 Wheel . | . . . . Hover 3 | . . . 3 Flight 2 | . . . 2 Utility 8 | 1 3 1 3 Device 2 | . 1 . 1 Storage 3 | 1 1 . 1 Processor 1 | . . 1 . Hackware . | . . . . Protection 2 | . 1 . 1 Artifact . | . . . . Weapon 15 | 2 3 1 9 Energy Gun 7 | 1 2 . 4 Energy Cannon 5 | . 1 1 3 Ballistic Gun 1 | 1 . . . Ballistic Cannon 2 | . . . 2 Launcher . | . . . . Special Weapon . | . . . . Impact Weapon . | . . . . Slashing Weapon . | . . . . Piercing Weapon . | . . . . Special Melee Weapon . | . . . . Unidentified Prototypes 3 | . . . 3 Parts Lost 10 | . . 1 9 Power 1 | . . . 1 Propulsion 3 | . . . 3 Utility 2 | . . . 2 Weapon 4 | . . 1 3 Highest Loss Streak 5 | . . 1 5 To Critical Strikes . | . . . . Average Slot Usage (%) 98 | . 98 100 97 Engine 18 | . 14 22 21 Leg 22 | . 28 22 18 Hover 1 | . . . 2 Device 7 | . 4 11 9 Storage 12 | . 14 11 11 Processor 7 | . . 11 11 Protection 3 | . 8 . . Energy Gun 8 | . 10 20 5 Energy Cannon 9 | . 8 1 11 Ballistic Gun 3 | . 9 . . Ballistic Cannon 2 | . . . 4 Peak Build Rating 22 | 6 11 13 22 Average Rating 12 | 3 8 12 16 On Entrance 7 | . 6 11 12 Naked Turns . | . . . . Heaviest Build 65 | 11 18 24 65 Greatest Support 20 | 20 20 20 20 Greatest Overweight (x) 9 | . . 1 9 Average Overweight (x) . | . . . 1 Largest Inventory Capacity 25 | 8 25 8 20 Average Capacity 8 | 6 8 8 9 Most Carried 8 | 6 8 8 8 Average Carried 7 | 4 7 7 7 Final Capacity 20 | 8 8 8 20 Final Carried 8 | 6 8 7 7 Class Distribution -------------------- 97% | Mutant Dominant Class ---------------- Mutant | -10/Materials Mutant | -9/Materials Mutant | -9/Storage Resources | -11 -10 -9 -9 ----------- Run | Yrd Mat Mat Sto Matter Collected 843 | 224 191 50 378 Remotely . | . . . . Salvage Created 2367 | . 518 446 1403 Parts 159 | . 49 21 89 Haulers Intercepted 1 | . . . 1 Recyclers Shooed 3 | . . 1 2 Parts Field Recycled . | . . . . Retrieved Matter . | . . . . Parts Self-Destructed . | . . . . Prevented . | . . . . Kills | -11 -10 -9 -9 ------- Run | Yrd Mat Mat Sto Combat Hostiles Destroyed 52 | . 16 8 28 Guns 18 | . 8 7 3 Cannons 33 | . 8 1 24 Classes Destroyed 9 | . 4 3 2 Worker 2 | . 1 . 1 Hauler 1 | . . . 1 Recycler 2 | . . 1 1 Mechanic 1 | . . . 1 Watcher 5 | . 3 . 2 Swarmer 11 | . 9 . 2 Grunt 27 | . 7 6 14 Brawler 3 | . . 1 2 Sentry 11 | . . 1 10 Best Kill Streak 8 | . 6 8 7 Combat Bots Only 7 | . 6 7 5 Max Kills in Single Turn 2 | . 2 1 2 Gunslinging . | . . . . Exploded . | . . . . Melee . | . . . . Uniques/NPCs Destroyed . | . . . . Combat | -11 -10 -9 -9 -------- Run | Yrd Mat Mat Sto Hostile Shots Fired 237 | . 55 15 167 Missed 55 | . 13 5 37 Damage Taken 2354 | . 393 129 1832 Core 517 | . 87 22 408 Absorbed by Shields . | . . . . Redirected to Shielding 12 | . 12 . . Regen/Repaired (Parts) 251 | . . . 251 Core Remaining (%) 82 | 100 65 . . Volleys Fired 137 | . 40 14 83 Largest 2 | . 2 2 2 Hottest 136 | . 90 113 136 Shots Fired 263 | . 80 28 155 Gun 118 | . 55 27 36 Cannon 145 | . 25 1 119 Launcher . | . . . . Special . | . . . . Kinetic 64 | . 30 . 34 Thermal 116 | . 30 1 85 Explosive . | . . . . Electromagnetic 83 | . 20 27 36 Robot Hit Streak 15 | . 7 5 15 Robot Miss Streak 7 | . 7 3 4 Penetration Max . | . . . . Secondary Targets 1 | . . 1 . Max Gunslinging Chain 1 | . . 1 . Shots Hit Robots 151 | . 44 19 88 Core Hits 73 | . 25 11 37 Critical Kills 1 | . . . 1 Critical Parts Destroyed . | . . . . Critical Strikes 3 | . . 1 2 Meltdown 1 | . . . 1 Blast 1 | . . . 1 Corrupt 1 | . . 1 . Melee Attacks . | . . . . Impact . | . . . . Slashing . | . . . . Piercing . | . . . . Sneak Attacks . | . . . . Combat Hostiles . | . . . . Follow-up Attacks . | . . . . Damage Inflicted 3014 | . 732 412 1870 Guns 1151 | . 409 315 427 Cannons 1776 | . 318 21 1437 Explosions 76 | . . 76 . Melee . | . . . . Ramming 11 | . 5 . 6 Kinetic 652 | . 248 . 404 Thermal 1470 | . 340 97 1033 Explosive . | . . . . Electromagnetic 881 | . 139 315 427 Impact . | . . . . Slashing . | . . . . Piercing . | . . . . Highest Corruption 1 | . . . 1 Average Corruption 1 | . . . 1 Corruption Purged . | . . . . Corruption Blocked . | . . . . Effects 3 | . . . 3 Matter Fused 1 | . . . 1 Heat Flow Errors 1 | . . . 1 Energy Discharges 1 | . . . 1 Overload Shots . | . . . . Overflow Damage 15 | . . 9 6 Projectiles 6 | . . . 6 Explosions 9 | . . 9 . Melee . | . . . . Knockbacks 2 | . . . 2 Impact . | . . . . Kinetic 2 | . . . 2 Secondary . | . . . . Self-Inflicted Damage . | . . . . Shots . | . . . . Rammed . | . . . . Targets Rammed 4 | . 1 . 3 Kicked 4 | . 1 . 3 Crushed . | . . . . Highest Temperature 612 | . 234 . 612 Average Temperature 132 | . 62 . 154 Received Heat Transfer 1005 | . 120 51 834 Effects 11 | . . . 11 Shutdowns 6 | . . . 6 Energy Bleed 3 | . . . 3 Interference 1 | . . . 1 Damage (core) 1 | . . . 1 Siege Activations . | . . . . Robots Corrupted . | . . . . Combat Hostiles . | . . . . Parts Fried . | . . . . Impact Corruptions . | . . . . Robots Melted 1 | . . . 1 Combat Hostiles 1 | . . . 1 Parts Melted 1 | . . . 1 Heat Transferred 2703 | . 716 137 1850 Parts Sabotaged . | . . . . Parts Stolen . | . . . . Parts Stripped . | . . . . Power Chain Reactions 1 | . . 1 . Alert | -11 -10 -9 -9 ------- Run | Yrd Mat Mat Sto Peak Influence 569 | . 312 220 569 Initial 131 | . . 131 92 Average 186 | . 130 68 252 Maximum Alert Level 2 | . 1 1 2 Low Security (%) 55 | 100 74 93 34 Level 1 38 | . 25 6 55 Level 2 5 | . . . 9 Level 3 . | . . . . Level 4 . | . . . . Level 5 . | . . . . High Security . | . . . . Max Security . | . . . . Squads Dispatched 7 | . 3 . 4 Investigation 2 | . 1 . 1 Extermination . | . . . . Reinforcement 4 | . 2 . 2 Assault 1 | . . . 1 Garrison . | . . . . Intercept . | . . . . Searches Triggered . | . . . . Construction Impeded . | . . . . Haulers Reinforced . | . . . . Active Scanning Responses . | . . . . Cargo Convoy Interrupts . | . . . . Stealth | -11 -10 -9 -9 --------- Run | Yrd Mat Mat Sto Distress Signals 6 | . 3 1 2 Communications Jammed . | . . . . Distress Signals . | . . . . Times Spotted 77 | . 31 9 37 Peak Tracking Total 7 | . 7 3 5 Tactical Retreats 5 | . 3 . 2 Traps | -11 -10 -9 -9 ------- Run | Yrd Mat Mat Sto Traps Triggered 3 | . 1 . 2 Indirectly . | . . . . Trap Hack Attempts . | . . . . Triggered . | . . . . Disarmed . | . . . . Reprogrammed . | . . . . Reused . | . . . . Traps Extracted . | . . . . Installed . | . . . . Triggered . | . . . . Machines | -11 -10 -9 -9 ---------- Run | Yrd Mat Mat Sto Machines Disabled 3 | . . . 3 Max in Single Turn 1 | . . . 1 Garrison Access 1 | . . . 1 Machines Repaired . | . . . . Machines Dismantled . | . . . . Machines Sabotaged . | . . . . Overloaded Fab Kills . | . . . . Hacking | -11 -10 -9 -9 --------- Run | Yrd Mat Mat Sto Machines Accessed 10 | . 3 2 5 Terminals 6 | . 3 1 2 Fabricators . | . . . . Repair Stations 2 | . . . 2 Recycling Units 1 | . . . 1 Scanalyzers 1 | . . 1 . Garrison Access . | . . . . Total Hacks 44 | . 7 13 24 Successful 27 | . 2 10 15 Failed 17 | . 5 3 9 Catastrophic 3 | . 3 . . Database Lockouts . | . . . . Manual . | . . . . Terminals 24 | . 7 6 11 Fabricators . | . . . . Repair Stations 11 | . . . 11 Recycling Units 2 | . . . 2 Scanalyzers 7 | . . 7 . Garrison Access . | . . . . Terminal Hacks 13 | . 2 4 7 Part Schematic 1 | . . . 1 Prototype ID Bank 2 | . 1 . 1 Emergency Access Points 1 | . . 1 . Alert Level 4 | . 1 1 2 Unreport Threat 1 | . . 1 . Locate Traps 1 | . . . 1 Reinforcement Status 1 | . . . 1 Hauler Manifests 1 | . . 1 . Zone Layout 1 | . . . 1 Fabricator Hacks . | . . . . Repair Station Hacks 7 | . . . 7 Scan Component 4 | . . . 4 Repair 3 | . . . 3 Recycling Unit Hacks 1 | . . . 1 Report Inventory 1 | . . . 1 Scanalyzer 6 | . . 6 . Insert Component 3 | . . 3 . Analyze 3 | . . 3 . Garrison Access Hacks . | . . . . Unauthorized Hacks . | . . . . Terminals . | . . . . Fabricators . | . . . . Repair Stations . | . . . . Recycling Units . | . . . . Scanalyzers . | . . . . Garrison Access . | . . . . Data Cores Recovered . | . . . . Used . | . . . . Hacking Detections 8 | . 3 2 3 Full Trace Events 2 | . 1 . 1 Feedback Events . | . . . . Feedback Blocked . | . . . . Robot Schematics Acquired . | . . . . Robots Built . | . . . . Authchips . | . . . . Time . | . . . . Total Robot Build Rating . | . . . . Part Schematics Acquired 4 | . . 3 1 Parts Built . | . . . . Authchips . | . . . . Time . | . . . . Total Part Build Rating . | . . . . Parts Repaired 3 | . . . 3 Time 109 | . . . 109 Parts Recycled . | . . . . Recycled Matter . | . . . . Retrieved Matter . | . . . . Retrieved Components . | . . . . Parts Scanalyzed 3 | . . 3 . Part Schematics Acquired 3 | . . 3 . Parts Damaged 1 | . . 1 . Bothacking | -11 -10 -9 -9 ------------ Run | Yrd Mat Mat Sto Used RIF Installer . | . . . . Robots Hacked . | . . . . Non-combat . | . . . . Combat . | . . . . Robot Hacks Applied . | . . . . Relay Couplers Released 1 | . . . 1 Machine Destruction 1 | . . . 1 Fabnet Peak Effective % . | . . . . Robots Rewired . | . . . . Allies Hacked . | . . . . Hacks Repelled . | . . . . Allies | -11 -10 -9 -9 -------- Run | Yrd Mat Mat Sto Total Allies . | . . . . Largest Group . | . . . . Highest-Rated Group . | . . . . Highest-Rated Ally . | . . . . Total Orders . | . . . . Ally Attacks . | . . . . Total Damage . | . . . . Kills . | . . . . Allies Corrupted . | . . . . Allies Melted . | . . . . Intel | -11 -10 -9 -9 ------- Run | Yrd Mat Mat Sto Robot Analysis Total . | . . . . Derelict Logs Recovered . | . . . . Drone Launches . | . . . . Drone Recoveries . | . . . . Exploration | -11 -10 -9 -9 ------------- Run | Yrd Mat Mat Sto Turns Passed 3353 | 60 1170 352 1771 Spaces Moved 1507 | 49 718 106 634 Core 23 | 21 . . 2 Treads . | . . . . Legs 1383 | 28 718 106 531 Wheels . | . . . . Hover 74 | . . . 74 Flight 27 | . . . 27 Fastest Speed 50 | 50 120 120 176 Average Speed 155 | 90 120 189 196 Slowest Speed 500 | 120 120 190 500 Overloaded Moves . | . . . . Propulsion Burnouts . | . . . . Robots Hopped . | . . . . Cave-ins Triggered . | . . . . Exploration Rate (%) 41 | 3 87 9 68 Regions Visited 3 Branch Regions 1 Pre-discovered Areas . | . . . . Known Exits Taken 1 | . . 1 . Unknown Exits Taken 2 | 1 1 . . Scrap Searched . | . . . . Spaces Dug . | . . . . Terrain Destroyed 4 | . . 2 2 Melee . | . . . . Projectile 2 | . . . 2 AOE 2 | . . 2 . Terrain Rammed . | . . . . Walls Destroyed . | . . . . Machines Disabled . | . . . . Actions | -11 -10 -9 -9 --------- Run | Yrd Mat Mat Sto Total 2242 | 63 948 230 1001 Wait 478 | 1 164 98 215 Move 1504 | 48 717 105 634 Hop . | . . . . Pick Up 42 | 8 10 5 19 Fast Attach 13 | 4 . . 9 Attach 15 | 2 2 3 8 Detach 1 | . 1 . . Swap 18 | . 5 2 11 Drop 30 | . 8 3 19 Fire 137 | . 40 14 83 Melee . | . . . . Ram . | . . . . Kick 4 | . 1 . 3 Crush . | . . . . Escape Stasis . | . . . . Rewire . | . . . . Trap . | . . . . Miscellaneous . | . . . . Route ------- -11/Scrapyard -10/Materials (discovered 4 exits: *Mat x2 / [*Min x2]) -9/Materials -9/Storage History --------- Turn | Location | Event 15 | -11/Scrapyard | Discovered new exit (range 16) 61 | -11/Scrapyard | Entered Materials 136 | -10/Materials | Discovered new exit (range 6) 216 | -10/Materials | Discovered new exit (range 10) 302 | -10/Materials | Build established: Mutant 445 | -10/Materials | Discovered new exit (range 6) 539 | -10/Materials | Discovered new exit (range 3) 1231 | -10/Materials | Entered another Materials area 1231 | -9/Materials | Evolved 2 slots: Power x1, Utility x1 1512 | -9/Materials | Destroyed 7 combat bots 1539 | -9/Materials | Discovered new exit (range 11) 1581 | -9/Materials | Identified exit to Storage 1583 | -9/Materials | Entered Storage 1859 | -9/Storage | Repaired Aluminum Leg 2360 | -9/Storage | Repaired Particle Cannon 2412 | -9/Storage | Repaired Hvy. Ion Engine 3233 | -9/Storage | Core integrity fell below 50% 3309 | -9/Storage | Lost 5 parts (1p2n1u1w) 3336 | -9/Storage | Core integrity fell below 20% 3355 | -9/Storage | Core destroyed Last Messages --------------- recycling unit. 03335_ R-06 Scavenger collects Corrupted Imp. Ion Engine. 03339_ R-06 Scavenger collects Tractor Beam. 03342_ Power failure, Hvy. Ion Engine shutdown. 03343_ G-34 Mercenary destroyed. 03344_ R-06 Scavenger collects Ion Engine. 03345_ Power failure, Lgt. Nuclear Core shutdown. 03348_ R-06 Scavenger collects Heat Sink. 03349_ K-01 Serf collects debris. 03351_ Overheating: Energy bleed (-41). 03352_ G-34 Mercenary misfires. 03353_ K-01 Serf collects debris. 03354_ Power failure, Lgt. Nuclear Core shutdown. 03354_ Overheating: Energy bleed (-39). 03354_ K-01 Serf collects debris. 03355_ Power failure, Hvy. Ion Engine shutdown. 03355_ Overheating: Core damaged (-76). Map ----- +----------------------------------------------------+ | | | | | | | | | | | | | ???????????????????????????????????????????????? | | ???????????????????????????????????????????????? | | ???????????????????????????????????????????????? | | ???????????????????????????????????????????????? | | ???????????????????????????????????????????????? | | ?????????????????????###???????????????????????? | | ?????????????????????? ???????????????????????? | | ?????????????????????? ???????????????????????? | | ?????????????????????? ???????????????????????? | | ?????????????????????? ???????????????????????? | | ??????????????#??????? %???????????????????????? | | ??????????????T"#######+##?????????????????????? | | ??????????????? #????##???????????????? | | ???????????????""" [ = /???? ???????????????? | | ????????????????"" [!*#??? ????????????????? | | ?????????????????? !!%!%#?? ?????????????????? | | ????????????????????!%===#?? #??#######????????? | | ?????????????????????? !%## # #????????? | | ?????????????????????###/## g/ ??????????? | | ?????????????????????# =k@% #?????????????????? | | ?????????????????????# k[ #?????????????????? | | #????????????????????#!m""" #?????????????????? | | #?################???# G" #?????????????????? | | ### # #####% "" #?????????????????? | | ""# "" +% % r ! #?????????????????? | | T"# " "" # #?????????????????? | | ""# " [""" # ######"Y"####?????????????????? | | ### """*]" ##+########"""#????????????????????? | | #?# ""[ " # #####????????????????????? | | #?# """" # #????????????????????????? | | #?# # #????????????????????????? | | ######+###### #????????????????????????? | | # #????????????????????????? | | # !! #????????????????????????? | | # !! #????????????????????????? | | ############# !! #????????????????????????? | | #???##############?????????????????????? | | #??????#!= = =#???###???????????????? | | #??????#*= == ##### #####???????????? | | #?????##%= # #???????????? | | #?????#%![[ # * #???????????? | | +##+##################+### #???????????? | | ^^% # "" """ #???????????? | | ^^ + """ """ #???????????? | +----------------------------------------------------+ Best States ------------- Heat Dissipation 50 Energy Generation 23 Energy Capacity 460 Matter Stores 300 Matter Capacity 300 Sight Range 16 Terrain Scan Density 10 Armor Coverage 150 Core Shielding 20 Evasion (%) 55 Item Schematics ----------------- Hvy. EM Pulse Gun | -9/Materials | Scanalyzed Particle Cannon | -9/Materials | Scanalyzed Ion Engine | -9/Materials | Scanalyzed Lgt. Nuclear Core | -9/Storage | Hacked Robot Schematics ------------------ None Fabricated ------------ Nothing Alien Tech Used ----------------- None Achievements -------------- It's Just You Challenges ------------ None Game ------ Seed LinkedSigixCasing Manual? 0 Play Time 00:53:23 Cumulative 17.0 hours Start 2024.08.09 @ 21:38:42 End 2024.08.09 @ 22:34:24 Sessions 1 Manual Loads 0 Difficulty Rogue Special Mode None Game No. 22 Rogue 22 Adventurer 0 Explorer 0 Win Type - Total 0 Types 0/0/0/0/0/0/0/0/0 Lore% 6 Gallery% 20 Achievement% 10 Wizard Run 0 Options --------- Layout 1 ASCII 0 Keyboard 0 Movement Numpad Keybinds 0 Fullscreen 1 Font 24/Smallcaps Map View 50x35 Zoom Use 0% Tactical HUD 1 Map Filters NONE Filters NONE Steam 1 RUN: b29d7661-fd70-400b-8aeb-ebd1131fb91a